bitfinex-derivatives/quotes_ETHF0:USTF0_20241129
["timestamp","ask_amount","ask_price","bid_price","bid_amount"]
[1732902900409,1.39162,3590.2,3589.2,0.55688257]
[1732902900602,0.27839,3589.3,3589.2,0.4242]
[1732902900798,0.27839,3589.3,3589.2,0.80651015]
[1732902901109,0.27839,3589.3,3589.2,0.4242]
[1732902902403,2.33458821,3589.3,3588.6,3.48630886]
[1732902902604,2.33458821,3589.3,3588.6,4.85275886]
[1732902902605,0.27844,3588.7,3588.6,4.85275886]
[1732902902901,0.27844,3588.7,3588.6,4.2958]
[1732902903106,0.69601,3589.2,3588.6,4.57425]
[1732902903405,0.27845,3588.5,3588.4,0.4242]
[1732902904404,0.24445,3588.5,3588.4,0.4242]
[1732902905704,0.4164,3588.8,3588.4,0.4242]
[1732902905903,0.27845,3588.5,3588.4,0.4242]
[1732902906906,0.27846,3588.4,3588.3,3.2078]
[1732902907104,0.27846,3588.4,3588.3,3.48627]
[1732902907606,0.27846,3588.5,3588.4,0.27846]
[1732902907907,0.27846,3588.4,3588.3,3.2078]
[1732902909411,0.27846,3588.4,3588.3,3.48627]
[1732902909608,0.27846,3588.4,3588.3,3.2078]
[1732902910016,0.27847,3588.3,3588.2,0.4237]
[1732902910201,0.27847,3588.3,3588.2,0.70218]
[1732902910406,0.27847,3588.3,3588.2,3.6315]
[1732902910710,0.27847,3588.3,3588.2,3.90998]
[1732902911304,0.27847,3588.3,3588.2,3.6315]
[1732902912001,0.27849,3588.0,3587.9,0.4343]
[1732902912714,0.69614,3588.5,3588.2,0.27847]
[1732902912715,0.27846,3588.5,3588.2,0.27847]
[1732902913013,3.6242,3588.8,3588.2,3.2078]
[1732902913210,0.27847,3588.4,3588.2,3.48627]
[1732902913611,3.2078,3588.8,3588.2,3.2078]
[1732902914013,0.27846,3588.5,3588.4,0.27846]
[1732902914208,0.27846,3588.5,3588.3,0.27846]
[1732902914408,0.27846,3588.5,3588.4,0.4081]
[1732902914710,1.12583,3589.1,3588.4,0.4081]
[1732902914904,0.4298,3589.1,3588.5,0.71525]
[1732902915110,0.27845,3588.6,3588.5,0.4368]
[1732902916812,0.27845,3588.6,3588.5,0.71525]
[1732902917012,0.4282,3589.2,3588.5,0.4368]
[1732902917207,0.27843,3588.8,3588.7,3.2078]
[1732902917413,0.69603,3589.1,3588.5,0.71525]
[1732902917615,0.27845,3588.6,3588.5,0.4368]
[1732902918013,0.27848,3588.1,3588.0,0.4504]
[1732902922512,5.54238821,3588.1,3587.2,0.27855]
[1732902922713,0.27853,3587.5,3587.4,0.4371]
[1732902923119,0.26875694,3587.5,3587.4,0.4371]
[1732902923419,0.24875694,3587.5,3587.4,0.4371]
[1732902926617,0.24875694,3587.5,3587.4,0.71564]
[1732902926817,0.24875694,3587.5,3587.4,0.4371]
[1732902928325,0.24875694,3587.5,3587.4,0.71564]
[1732902929020,0.24875694,3587.5,3587.4,0.4371]
[1732902929826,0.24875694,3587.5,3587.4,0.71564]
[1732902930016,0.24875694,3587.5,3587.4,0.4371]
[1732902932019,0.27855,3587.3,3587.2,0.4313]
[1732902932216,0.27855,3587.3,3587.2,0.8391]
[1732902932612,0.27855,3587.3,3587.1,3.2078]
[1732902932613,0.4074,3587.6,3587.1,3.2078]
[1732902932817,0.27855,3587.2,3587.1,3.2078]
[1732902934719,1.10373,3587.6,3586.9,0.27858]
[1732902934915,0.27859,3586.9,3586.8,0.27858]
[1732902935619,0.27859,3586.8,3586.7,0.27859]
[1732902936325,0.441,3587.4,3586.6,5.1442]
[1732902936523,0.441,3587.4,3587.0,3.2078]
[1732902936821,0.6964,3587.2,3586.9,3.2078]
[1732902937024,0.27857,3587.0,3586.9,3.48637]
[1732902937723,0.27857,3587.1,3587.0,0.27856]
[1732902937931,0.441,3587.4,3586.9,3.2078]
[1732902938119,0.27857,3587.0,3586.9,3.48637]
[1732902938826,0.27857,3587.2,3587.1,0.27855]
[1732902939124,0.27857,3587.1,3587.0,0.27857]
[1732902940325,0.27857,3587.0,3586.9,3.2078]
[1732902940826,0.27857,3587.0,3586.9,3.48638]
[1732902943726,0.27857,3587.0,3586.9,3.2078]
[1732902944030,0.27857,3587.0,3586.9,3.48638]
[1732902945837,0.27857,3587.1,3587.0,0.27855]
[1732902946131,0.27857,3587.0,3586.9,3.48637]
[1732902946429,0.27857,3587.0,3586.9,3.2078]
[1732902947030,0.27857,3587.0,3586.9,3.48638]
[1732902947928,0.69637,3587.4,3586.6,0.8504]
[1732902948127,0.27859,3586.7,3586.6,1.129]
[1732902948335,0.27859,3586.7,3586.6,4.3368]
[1732902949533,0.27859,3586.7,3586.6,3.2078]
[1732902950433,0.27862,3586.3,3586.2,0.4337]
[1732902951135,0.21862,3586.3,3586.2,0.4337]
[1732902952131,0.27862,3586.4,3586.3,0.27861]
[1732902952330,1.13686,3586.9,3586.2,0.4337]
[1732902952830,0.69638,3587.3,3586.5,5.54238821]
[1732902953031,0.27859,3586.9,3586.8,3.48638]
[1732902953731,0.27859,3586.9,3586.8,3.6561]
[1732902954133,0.27859,3586.9,3586.8,3.93469]
[1732902954334,2.33458821,3587.5,3586.8,3.6561]
[1732902954529,0.27855,3587.4,3587.3,0.27854]
[1732902954737,3.2078,3588.1,3587.2,3.2078]
[1732902954738,3.6202,3588.1,3587.2,3.2078]
[1732902955039,0.27853,3587.6,3587.5,3.48633]
[1732902955530,0.8302,3588.1,3587.7,0.27851]
[1732902955531,0.27852,3587.8,3587.7,0.27851]
[1732902956035,0.4178,3588.1,3587.5,3.2078]
[1732902956036,0.27852,3587.7,3587.6,0.27852]
[1732902956639,3.2078,3587.7,3586.9,3.2078]
[1732902956938,0.27857,3587.0,3586.9,3.2078]
[1732902958341,0.4376,3587.2,3586.6,0.68489]
[1732902958637,0.27859,3586.7,3586.6,0.4063]
[1732902959038,0.27859,3586.7,3586.6,0.6849]
[1732902959436,0.27859,3586.7,3586.6,0.4063]
[1732902960141,0.27859,3586.7,3586.6,0.6849]
[1732902960643,0.27859,3586.8,3586.7,0.27859]
[1732902960937,0.69642,3587.1,3586.6,0.4063]
[1732902960938,0.27859,3586.7,3586.6,0.4063]
[1732902961534,3.03101821,3587.0,3586.4,4.2908]
[1732902961843,0.27861,3586.5,3586.4,1.083]
[1732902962339,0.70001,3586.5,3586.4,1.083]
[1732902964143,0.4214,3586.5,3586.1,0.70274]
[1732902964332,0.27863,3586.2,3586.1,0.70274]
[1732902964736,0.27863,3586.2,3586.1,0.4241]
[1732902965440,0.27863,3586.2,3586.1,0.70274]
[1732902966342,0.27863,3586.3,3586.2,0.27862]
[1732902966545,0.27862,3586.4,3586.3,0.27862]
[1732902966838,0.27863,3586.3,3586.2,0.27863]
[1732902967044,0.69651,3586.6,3586.1,0.4241]
[1732902967244,0.69651,3586.6,3586.1,0.70273]
[1732902967245,0.27863,3586.2,3586.1,0.70273]
[1732902967544,0.27863,3586.4,3586.3,0.27862]
[1732902967938,0.69643,3587.0,3586.1,4.7149]
[1732902968238,0.27861,3586.6,3586.5,0.2786]
[1732902968438,0.69643,3587.0,3586.1,4.7149]
[1732902968633,0.2786,3586.7,3586.6,0.27859]
[1732902969038,0.27858,3587.0,3586.9,0.27857]
[1732902969445,2.994,3587.4,3586.6,3.2078]
[1732902969643,0.27859,3586.9,3586.8,0.27857]
[1732902969840,1.12379,3587.3,3586.9,0.27857]
[1732902969841,0.27858,3587.0,3586.9,0.27857]
[1732902970243,0.4274,3587.3,3586.8,0.438]
[1732902970455,0.27855,3587.3,3587.2,0.27855]
[1732902970645,0.69631,3587.7,3587.1,3.48636]
[1732902970646,0.27855,3587.2,3587.1,3.48636]
[1732902970844,0.27855,3587.2,3587.1,3.48633]
[1732902971050,0.27857,3587.5,3587.4,0.27856]
[1732902971244,0.27857,3587.5,3587.1,3.2078]
[1732902971245,0.27857,3587.5,3587.2,0.27858]
[1732902971439,0.27856,3587.6,3587.4,0.27856]
[1732902971642,0.27856,3587.6,3587.1,3.2078]
[1732902971643,0.27856,3587.6,3587.5,0.438]
[1732902972138,0.27856,3587.6,3587.1,3.2078]
[1732902972344,0.27858,3587.2,3587.1,3.2078]
[1732902972547,0.27861,3586.9,3586.8,0.4381]
[1732902972943,0.27861,3586.8,3586.7,1.083]
[1732902973548,0.27865,3586.3,3586.2,0.71676]
[1732902973946,0.27865,3586.3,3586.2,0.4381]
[1732902975049,0.27865,3586.3,3586.2,0.71676]
[1732902975247,0.27865,3586.3,3586.2,0.4381]
[1732902977246,0.27865,3586.3,3586.2,0.71676]
[1732902977449,0.27865,3586.3,3586.2,0.4381]
[1732902977657,0.27864,3586.4,3586.1,0.27866]
[1732902977857,0.27867,3586.1,3586.0,3.90137]
[1732902978044,0.27867,3586.1,3586.0,3.6227]
[1732902978357,0.27868,3585.9,3585.8,1.77489]
[1732902978544,0.2787,3585.8,3585.7,0.2787]
[1732902978850,0.1687,3585.8,3585.7,0.2787]
[1732902979055,2.33458821,3586.1,3585.7,0.2787]
[1732902979253,2.33458821,3586.1,3585.6,3.2078]
[1732902979451,0.27869,3585.9,3585.8,0.27869]
[1732902979760,2.33458821,3586.1,3585.6,3.2078]
[1732902980053,0.2787,3585.8,3585.7,0.2787]
[1732902980245,0.27868,3586.1,3586.0,0.27868]
[1732902980448,0.27868,3586.1,3586.0,0.27867]
[1732902980646,0.27868,3586.0,3585.9,0.27868]
[1732902980847,2.33458821,3586.4,3585.6,3.2078]
[1732902981044,2.994,3586.9,3586.0,3.2078]
[1732902981246,0.27865,3586.4,3586.3,0.27865]
[1732902981953,6.23890821,3587.0,3586.0,3.2078]
[1732902981954,3.2078,3587.0,3586.0,3.2078]
[1732902982158,0.27862,3586.8,3586.7,0.27862]
[1732902982360,0.27862,3586.9,3586.8,0.27861]
[1732902982558,3.2078,3587.5,3586.5,3.03118821]
[1732902982758,3.2078,3587.5,3586.8,3.2078]
[1732902983058,0.27859,3587.2,3587.1,0.27859]
[1732902983755,3.58448821,3587.6,3586.9,0.4375]
[1732902983756,3.17038821,3587.6,3586.9,0.4375]
[1732902983953,0.27859,3587.2,3587.1,0.27859]
[1732902984563,0.27859,3587.1,3587.0,0.70349]
[1732902984857,3.17038821,3587.6,3587.0,0.4249]
[1732902985159,3.17038821,3587.6,3587.1,0.27858]
[1732902985160,0.27859,3587.2,3587.1,0.27858]
[1732902985347,3.17038821,3587.6,3587.0,0.8497]
[1732902985560,0.27859,3587.1,3587.0,1.1283]
[1732902986063,0.27859,3587.1,3587.0,0.8497]
[1732902986268,0.27861,3586.9,3586.8,3.48641]
[1732902986567,0.27864,3586.6,3586.5,0.27863]
[1732902987161,0.27864,3586.6,3586.4,0.8359]
[1732902987162,0.27864,3586.5,3586.4,1.11454]
[1732902988056,2.74418821,3586.8,3586.3,1.08]
[1732902988260,3.2078,3587.0,3586.3,1.08]
[1732902988461,0.27862,3586.8,3586.7,0.27862]
[1732902988658,3.2078,3587.0,3586.4,0.4318]
[1732902988659,0.27863,3586.7,3586.6,0.27862]
[1732902988874,0.27864,3586.6,3586.5,0.27863]
[1732902990269,3.2078,3587.0,3586.4,0.4318]
[1732902990466,0.27863,3586.7,3586.6,0.27862]
[1732902991468,3.2078,3587.0,3586.4,0.4318]
[1732902991675,0.27857,3587.5,3587.4,0.27855]
[1732902991968,0.428,3588.1,3587.6,0.27855]
[1732902992174,0.27854,3587.7,3587.6,0.27855]
[1732902992576,0.428,3588.1,3587.3,0.417]
[1732902992763,0.27854,3587.8,3587.7,0.27852]
[1732902993270,0.428,3588.1,3587.4,0.4421]
[1732902993469,0.27851,3587.9,3587.8,0.2785]
[1732902993774,0.27851,3587.9,3587.4,0.4421]
[1732902993775,0.428,3588.1,3587.4,0.4421]
[1732902994073,0.27848,3588.3,3588.2,0.27847]
[1732902994478,0.27846,3588.6,3588.5,0.27845]
[1732902995772,0.27845,3588.6,3588.5,0.27845]
[1732902996377,3.2078,3588.9,3588.2,0.4242]
[1732902996676,0.27844,3588.8,3588.7,0.27843]
[1732902997368,3.2078,3588.9,3588.8,0.27843]
[1732902997569,0.27843,3588.8,3588.7,0.27843]
[1732902997970,0.27844,3588.7,3588.6,1.35844]
[1732902998278,0.27844,3588.7,3588.6,1.08]
[1732902998475,0.27844,3588.7,3588.6,1.35845]
[1732902998784,0.27844,3588.7,3588.6,1.08]
[1732902998973,0.27843,3588.9,3588.8,0.27843]
[1732902999174,0.27844,3588.7,3588.6,1.08]
[1732902999479,0.27845,3588.5,3588.4,3.2078]
[1732902999771,0.27845,3588.6,3588.4,3.2078]
[1732902999975,0.27845,3588.6,3588.5,0.27845]
[1732903000680,0.696,3589.3,3588.4,3.2078]
[1732903000879,0.27844,3588.8,3588.7,0.27843]
[1732903001178,0.27843,3588.9,3588.8,0.27843]
[1732903001676,0.27842,3589.0,3588.9,0.27842]
[1732903002582,0.27841,3589.1,3589.0,0.27841]
[1732903003281,0.2784,3589.2,3589.0,0.27842]
[1732903003485,0.2784,3589.2,3589.1,0.27841]
[1732903004376,0.8754,3589.5,3589.2,0.2784]
[1732903004377,0.2784,3589.3,3589.2,0.2784]
[1732903004773,3.03048821,3589.8,3589.2,0.2784]
[1732903004774,4.0737,3589.9,3589.2,2.33458821]
[1732903004977,0.27839,3589.4,3589.3,0.27839]
[1732903005183,1.11787,3589.9,3589.5,0.27837]
[1732903005184,0.27838,3589.6,3589.5,0.27837]
[1732903005380,0.27838,3589.5,3589.4,0.27838]
[1732903005576,0.27839,3589.4,3589.3,0.27839]
[1732903006380,0.27837,3589.6,3589.5,0.27837]
[1732903006581,0.27839,3589.4,3589.3,0.27839]
[1732903006782,0.27839,3589.3,3589.2,3.2078]
[1732903006984,3.6298,3589.9,3589.1,0.2784]
[1732903007283,0.2784,3589.2,3589.1,0.2784]
[1732903007486,0.27839,3589.4,3589.3,0.27838]
[1732903007686,3.6298,3589.9,3589.0,0.4231]
[1732903007883,0.27841,3589.2,3589.1,0.27841]
[1732903008183,0.27839,3589.4,3589.3,0.27838]
[1732903008384,4.32569,3589.9,3589.4,0.27838]
[1732903008385,0.27838,3589.5,3589.4,0.27838]
[1732903008891,0.27838,3589.6,3589.5,0.27837]
[1732903009184,3.2078,3589.9,3589.2,5.54238821]
[1732903009389,0.27839,3589.4,3589.3,0.27839]
[1732903010078,0.27838,3589.6,3589.5,0.27837]
[1732903010486,0.69585,3590.0,3589.9,0.27834]
[1732903010487,0.27834,3590.0,3589.9,0.27834]
[1732903010883,0.27835,3590.0,3589.9,0.27834]
[1732903011784,0.27835,3589.9,3589.8,1.11944]
[1732903013888,0.27834,3590.0,3589.9,0.27834]
[1732903014690,0.27835,3589.9,3589.8,1.11945]
[1732903015495,0.69579,3590.3,3589.8,0.8411]
[1732903015791,0.4274,3590.5,3589.9,0.27833]
[1732903015792,0.27834,3590.0,3589.9,0.27833]
[1732903017386,0.4274,3590.5,3589.8,0.8411]
[1732903017691,0.27832,3590.3,3590.2,3.48611]
[1732903017890,0.27832,3590.3,3590.2,3.2078]
[1732903018388,0.4274,3590.5,3590.2,3.2078]
[1732903018787,0.27831,3590.3,3590.2,3.48612]
[1732903018989,0.27831,3590.3,3590.2,3.2078]
[1732903019691,0.27832,3590.2,3590.1,2.61290821]
[1732903020187,0.4274,3590.5,3590.1,2.33458821]
[1732903020494,0.27832,3590.3,3590.2,0.27831]
[1732903021789,0.4274,3590.5,3590.2,0.27831]
[1732903022094,3.2078,3590.8,3590.1,2.33458821]
[1732903022393,0.27831,3590.5,3590.4,0.2783]
[1732903024295,0.27829,3590.8,3590.7,0.27827]
[1732903024596,0.4252,3591.1,3590.6,1.076]
[1732903024597,1.12085,3591.1,3590.6,1.076]
[1732903024789,0.27828,3590.7,3590.6,1.076]
[1732903025591,0.27834,3590.0,3589.9,3.2078]
[1732903026493,0.27834,3590.1,3589.9,5.54238821]
[1732903026689,0.6957,3590.8,3589.9,5.54238821]
[1732903026690,0.27832,3590.3,3590.2,0.27831]
[1732903026891,0.27832,3590.3,3590.2,2.61289821]
[1732903027086,0.27832,3590.3,3590.2,2.61290821]
[1732903027291,0.27831,3590.5,3590.4,0.27829]
[1732903027790,0.4199,3590.7,3590.3,0.4074]
[1732903027987,0.27831,3590.4,3590.3,0.68571]
[1732903028190,0.27828,3590.8,3590.7,0.27828]
[1732903028390,0.27827,3590.9,3590.8,0.27827]
[1732903028592,0.27827,3590.9,3590.8,2.78188821]
[1732903029888,3.6277,3591.4,3590.8,2.78188821]
[1732903030190,3.6277,3591.4,3590.8,0.4473]
[1732903030191,4.32328,3591.4,3590.8,0.4473]
[1732903030401,0.27827,3590.9,3590.8,0.4473]
[1732903030689,0.27827,3591.0,3590.9,0.27826]
[1732903030893,0.27827,3591.0,3590.9,2.61284821]
[1732903031089,0.27827,3591.0,3590.9,2.33458821]
[1732903032398,0.27826,3591.1,3591.0,0.27825]
[1732903032598,0.27826,3591.1,3591.0,0.68975]
[1732903032894,3.2078,3591.4,3591.0,0.4115]
[1732903033097,0.27825,3591.1,3591.0,0.68976]
[1732903033297,0.27825,3591.1,3591.0,0.4115]
[1732903033907,3.2078,3591.4,3590.9,2.33458821]
[1732903034098,0.27826,3591.0,3590.9,2.33458821]
[1732903034293,3.2078,3591.4,3590.5,0.436]
[1732903034601,3.2078,3591.4,3590.4,0.4494]
[1732903034602,0.2783,3590.5,3590.4,1.076]
[1732903034896,0.2783,3590.5,3590.4,1.35431]
[1732903035099,3.2078,3591.6,3590.4,1.5092]
[1732903035296,0.27827,3591.0,3590.9,0.27826]
[1732903037703,0.27827,3590.9,3590.8,2.33458821]
[1732903037904,0.27827,3590.9,3590.8,2.61286821]
[1732903038299,0.27826,3591.1,3591.0,0.27825]
[1732903038701,0.23441819,3592.4,3590.9,3.2078]
[1732903038702,3.2078,3592.1,3590.9,3.2078]
[1732903039002,0.27822,3591.6,3591.5,2.61279821]
[1732903039601,0.69548,3592.0,3591.4,1.9062]
[1732903039799,0.27822,3591.5,3591.4,1.9062]
[1732903044702,0.27822,3591.5,3591.4,1.076]
[1732903044902,0.69551,3591.8,3591.3,3.2078]
[1732903044903,0.27823,3591.4,3591.3,3.2078]
[1732903045103,0.27823,3591.4,3590.9,0.85]
[1732903045104,0.27824,3591.2,3591.1,1.073]
[1732903045305,0.8386,3591.4,3590.9,4.33607]
[1732903045604,0.27826,3591.1,3591.0,0.27825]
[1732903046704,0.27826,3591.0,3590.9,5.1308]
[1732903047101,0.27826,3591.0,3590.9,5.40907]
[1732903049805,0.27826,3591.0,3590.9,4.0578]
[1732903050310,0.27826,3591.0,3590.9,0.85]
[1732903050604,0.69564,3591.1,3590.4,3.2078]
[1732903050809,1.39124,3591.2,3590.5,1.073]
[1732903050810,0.27828,3590.8,3590.5,1.073]
[1732903051110,0.27829,3590.6,3590.5,1.073]
[1732903051910,0.27829,3590.8,3590.5,3.40758821]
[1732903052108,1.10681,3591.3,3590.5,3.40758821]
[1732903052412,0.27824,3591.3,3591.2,2.61282821]
[1732903052611,0.27824,3591.3,3591.2,2.33458821]
[1732903052801,0.27824,3591.3,3591.2,2.61282821]
[1732903054018,0.27823,3591.5,3591.4,0.27822]
[1732903055008,0.27824,3591.3,3591.2,5.82062821]
[1732903055206,0.27824,3591.3,3591.2,6.89362821]
[1732903056413,0.27824,3591.3,3591.2,6.61538821]
[1732903056611,3.2078,3591.3,3590.4,2.33458821]
[1732903056917,1.55712,3591.2,3590.5,1.8911]
[1732903057109,0.27829,3590.6,3590.5,2.16939]
[1732903057814,0.27828,3590.8,3590.7,0.27828]
[1732903058108,1.55712,3591.2,3590.5,1.8911]
[1732903058309,0.27828,3590.8,3590.7,0.27828]
[1732903058614,1.55712,3591.2,3590.5,1.8911]
[1732903058817,0.27829,3590.7,3590.6,0.27829]
[1732903059909,0.27829,3590.6,3590.5,2.1694]
[1732903060114,0.27829,3590.7,3590.6,0.27828]
[1732903060309,0.27829,3590.7,3590.6,2.61286821]
[1732903060815,0.27829,3590.6,3590.5,0.8181]
[1732903061020,0.27829,3590.6,3590.5,1.8911]
[1732903061315,0.27829,3590.6,3590.5,0.8181]
[1732903061817,0.2783,3590.5,3590.4,1.35131]
[1732903065210,0.69569,3590.9,3590.4,1.073]
[1732903065416,0.2783,3590.5,3590.4,1.35131]
[1732903066424,0.2783,3590.5,3590.4,1.073]
[1732903066922,0.2783,3590.5,3590.4,1.35131]
[1732903067218,0.2783,3590.5,3590.4,1.073]
[1732903068117,0.2783,3590.5,3590.4,1.35131]
[1732903068314,0.2783,3590.6,3590.5,0.27829]
[1732903068512,0.2783,3590.6,3590.5,2.61287821]
[1732903069319,0.2783,3590.6,3590.5,2.33458821]
[1732903070022,0.8615,3591.2,3590.3,4.0681]
[1732903070023,2.25275,3591.2,3590.3,4.0681]
[1732903070219,0.27831,3590.4,3590.3,5.1411]
[1732903070518,0.27831,3590.4,3590.3,5.41941]
[1732903070920,0.27831,3590.4,3590.3,5.1411]
[1732903071420,0.27831,3590.4,3590.3,4.2778]
[1732903071617,0.27831,3590.4,3590.3,4.55611]
[1732903074622,0.27831,3590.4,3590.3,4.2778]
[1732903075927,0.27831,3590.4,3590.3,4.55611]
[1732903076119,0.27831,3590.4,3590.3,2.19626158]
[1732903076321,0.27831,3590.4,3589.8,3.2078]
[1732903076322,1.12626158,3590.7,3589.8,3.2078]
[1732903076519,0.27835,3589.9,3589.8,1.12626158]
[1732903076725,0.27835,3589.8,3589.7,1.4999]
[1732903076918,5.47530158,3590.1,3589.7,1.07]
[1732903077124,0.69589,3589.8,3589.3,1.12626158]
[1732903077327,0.27838,3589.4,3589.3,1.12626158]
[1732903077732,0.27839,3589.3,3589.2,1.07]
[1732903078026,0.27839,3589.3,3589.2,2.19626158]
[1732903078219,0.8181,3589.6,3589.2,2.19626158]
[1732903078420,0.27839,3589.3,3589.2,1.07]
[1732903078623,0.27839,3589.3,3589.2,1.3484]
[1732903078826,0.27839,3589.3,3589.2,1.07]
[1732903079424,0.27839,3589.3,3588.9,0.8389]
[1732903079425,1.3919,3589.5,3589.1,1.12626158]
[1732903079630,0.2784,3589.2,3589.1,1.12626158]
[1732903080232,0.27842,3589.0,3588.9,1.9089]
[1732903080527,0.27842,3589.0,3588.9,0.4299]
[1732903080831,0.27843,3588.8,3588.7,3.2078]
[1732903081023,0.8318,3588.9,3588.2,3.80789216]
[1732903081230,0.27847,3588.3,3588.2,3.80789216]
[1732903081726,0.6961,3588.8,3588.2,3.80789216]
[1732903081928,0.27847,3588.3,3588.2,3.80789216]
[1732903082123,0.6961,3588.8,3588.0,3.2078]
[1732903082322,0.27848,3588.1,3588.0,3.2078]
[1732903082536,0.27848,3588.1,3588.0,4.83495563]
[1732903082923,0.27848,3588.1,3588.0,4.55646563]
[1732903083730,0.27848,3588.2,3588.0,4.55646563]
[1732903083930,0.27848,3588.2,3588.1,0.4203]
[1732903084146,0.27849,3588.0,3587.9,1.4994]
[1732903084430,0.27849,3588.0,3587.9,3.83039216]
[1732903084732,3.90392,3588.6,3588.0,0.27849]
[1732903084733,0.27849,3588.1,3588.0,0.27849]
[1732903084929,0.27849,3588.0,3587.9,3.83039216]
[1732903086338,3.90392,3588.6,3587.9,4.10889216]
[1732903086529,0.27848,3588.2,3588.1,0.27848]
[1732903086745,0.27847,3588.3,3588.2,2.33099216]
[1732903087539,1.52788,3588.9,3588.1,3.2078]
[1732903087845,0.27848,3588.2,3588.1,3.2078]
[1732903090541,0.27848,3588.1,3588.0,1.071]
[1732903091542,0.27848,3588.1,3588.0,1.34949]
[1732903091743,0.27848,3588.2,3588.1,0.27848]
[1732903091949,0.27848,3588.2,3588.1,3.48628]
[1732903092347,0.27848,3588.2,3588.1,3.2078]
[1732903092842,0.27848,3588.2,3588.1,3.48628]
[1732903093042,0.27848,3588.2,3588.1,3.2078]
[1732903093240,0.27848,3588.2,3588.1,3.48628]
[1732903093642,0.27848,3588.2,3588.1,3.2078]
[1732903095245,0.27848,3588.2,3588.1,3.48628]
[1732903095749,0.27848,3588.2,3588.1,3.2078]
[1732903095950,0.27848,3588.2,3588.1,3.48628]
[1732903096453,0.27848,3588.2,3588.1,3.2078]
[1732903097850,0.27848,3588.1,3588.0,4.32249]
[1732903099656,0.27848,3588.1,3588.0,4.044]
[1732903100254,0.69624,3588.0,3587.2,3.48646563]
[1732903100453,0.27854,3587.4,3587.3,0.4444]
[1732903100750,0.27854,3587.4,3587.3,1.85070325]
[1732903101353,0.27854,3587.4,3587.3,1.57215325]
[1732903101855,0.27854,3587.4,3587.3,1.85070325]
[1732903102247,1.8312,3588.3,3587.3,1.85070325]
[1732903102248,0.4388,3588.3,3587.3,1.57215325]
[1732903102558,0.4388,3588.3,3587.9,0.27849]
[1732903102559,0.27849,3588.0,3587.9,0.27849]
[1732903103149,0.27849,3588.0,3587.9,0.415]
[1732903103547,0.27851,3587.8,3587.7,3.2078]
[1732903108562,0.27851,3587.8,3587.7,3.48632]
[1732903108753,0.27851,3587.8,3587.7,3.2078]
[1732903109756,0.27851,3587.8,3587.6,1.34652]
[1732903109757,0.27852,3587.7,3587.6,1.068]
[1732903109959,0.27852,3587.7,3587.6,1.34652]
[1732903110258,0.27852,3587.7,3587.6,1.068]
[1732903110852,0.27853,3587.6,3587.5,0.27853]
[1732903111052,0.27853,3587.6,3587.5,1.068]
[1732903112364,0.27853,3587.6,3587.5,1.34653]
[1732903112571,0.2785,3588.0,3587.9,0.27849]
[1732903112762,0.27848,3588.3,3588.2,0.27847]
[1732903113357,0.27847,3588.3,3588.2,3.2078]
[1732903113568,0.27847,3588.3,3588.2,3.48628]
[1732903113864,0.27845,3588.6,3588.5,0.27844]
[1732903114060,3.6421,3589.0,3588.5,3.40028116]
[1732903114061,3.2078,3589.0,3588.5,3.40028116]
[1732903114269,0.27844,3588.7,3588.6,0.71505]
[1732903114765,0.27844,3588.8,3588.7,0.27843]
[1732903115065,0.4332,3589.3,3588.6,3.6444]
[1732903115257,0.27841,3589.2,3589.1,0.2784]
[1732903115456,0.27841,3589.2,3589.1,0.7182]
[1732903115661,0.27841,3589.2,3589.1,1.1278]
[1732903115861,0.27841,3589.2,3589.1,1.12781]
[1732903116165,0.27841,3589.2,3589.1,0.8494]
[1732903116361,0.27839,3589.3,3589.1,0.8494]
[1732903116561,0.27836,3589.7,3589.3,0.27839]
[1732903116764,0.27838,3589.5,3589.4,0.27838]
[1732903117063,0.27838,3589.4,3589.3,1.068]
[1732903123364,0.27838,3589.4,3589.1,0.8494]
[1732903123365,0.2784,3589.2,3589.1,0.8494]
[1732903123663,0.2784,3589.2,3589.1,1.12781]
[1732903124268,0.69591,3589.7,3589.1,0.8494]
[1732903124563,0.2784,3589.2,3589.1,0.8494]
[1732903125568,0.2784,3589.2,3589.1,1.12781]
[1732903125966,0.2784,3589.2,3589.1,0.8494]
[1732903126472,0.27842,3589.0,3588.9,3.2078]
[1732903126866,0.27842,3589.0,3588.9,3.48622]
[1732903127472,0.69595,3589.5,3588.9,3.2078]
[1732903127769,0.27841,3589.1,3589.0,0.27841]
[1732903128070,0.69595,3589.5,3589.1,0.2784]
[1732903128071,0.27841,3589.2,3589.1,0.2784]
[1732903129564,0.27841,3589.1,3589.0,1.068]
[1732903130273,0.27841,3589.1,3589.0,1.34642]
[1732903130465,0.27841,3589.1,3589.0,3.67870116]
[1732903130765,0.27841,3589.3,3589.2,0.27839]
[1732903131167,0.27839,3589.4,3589.3,0.27838]
[1732903131360,0.27838,3589.6,3589.5,0.27837]
[1732903131560,0.27836,3589.8,3589.7,0.27835]
[1732903131773,0.27835,3590.0,3589.9,0.27834]
[1732903131960,0.27835,3589.9,3589.8,0.27835]
[1732903132163,0.27835,3589.9,3589.8,1.34335]
[1732903134078,0.27835,3589.9,3589.8,1.065]
[1732903139777,1.15055,3589.9,3589.8,1.065]
[1732903141676,0.2784,3589.3,3589.2,1.065]
[1732903142081,0.2784,3589.3,3589.2,1.3434]
[1732903142273,0.69594,3589.6,3589.1,1.10186239]
[1732903142274,0.2784,3589.2,3589.1,0.4101]